[Event "2nd Serbian League-Vojvodina 2023"]
[Site "Novi Sad"]
[Date "2023.11.06"]
[Round "6.12"]
[White "Krejic, Igor"]
[Black "Gabric, Goran"]
[Result "0-1"]
[ECO "C45"]
[WhiteElo "2128"]
[BlackElo "2182"]
[Annotator "RC"]
[PlyCount "64"]
[EventDate "2023.10.22"]
[EventType "team-tourn"]
[EventCountry "SRB"]
[SourceTitle "playchess.com"]
[Source "ChessBase"]
[SourceQuality "1"]
[TimeControl "40/5400+30:1800+30"]

1. e4 {[%emt 0:04:23]} e5 {[%emt 0:00:07]} 2. Nf3 {[%emt 0:02:12]} Nc6 {[%emt 0:00:08]} 3. d4 {[%emt 0:01:57]} exd4 {[%emt 0:00:49]} 4. Nxd4 {[%emt 0:01:46]} Bb4+ {[%emt 0:06:45]} 5. c3 {[%emt 0:03:39]} Be7 {[%emt 0:04:27]} 6. Bd3 {[%emt 0:04:54]} Nxd4 {[%emt 0:02:49]} 7. cxd4 {[%emt 0:00:08]} d5 {[%emt 0:00:12]} 8. e5 {[%emt 0:02:03]} c6 {[%emt 0:01:56]} 9. O-O {[%emt 0:04:37]} Qb6 {[%emt 0:01:56]} 10. Bc2 {[%emt 0:03:50]} h5 {[%emt 0:00:48]} 11. f4 {[%emt 0:10:40]} Nh6 {[%emt 0:06:20]} 12. f5 {[%emt 0:04:34]} Ng4 {[%emt 0:01:52]} 13. Nc3 {[%emt 0:05:12]} a5 {[%emt 0:12:22]} 14. Re1 {[%emt 0:08:11]} Bc5 {[%emt 0:18:28]} 15. Ne2 {[%emt 0:03:32]} Bb4 {[%emt 0:03:16]} 16. Bd2 {[%emt 0:00:36]} Kf8 {[%emt 0:09:28]} 17. Bxb4+ {[%emt 0:04:39]} axb4 {[%emt 0:27:17]} 18. Nc1 {[%emt 0:03:53]} c5 {[%emt 0:00:00]} 19. Nb3 {[%emt 0:03:53]} c4 {[%emt 0:00:00]} 20. Nc5 {[%emt 0:00:14]} Ra5 {[%emt 0:00:00]} 21. Na4 {[%emt 0:04:30]} Rxa4 {[%emt 0:00:00]} 22. Bxa4 {[%emt 0:00:25]} Bxf5 {[%emt 0:00:00]} 23. h3 {[%emt 0:00:48]} Bd3 {[%emt 0:00:00]} 24. hxg4 {[%emt 0:05:46]} Qxd4+ {[%emt 0:03:30]} 25. Kh2 {[%emt 0:00:34]} hxg4+ {[%emt 0:00:00]} 26. Kg3 {[%emt 0:02:14]} Rh6 {[%emt 0:01:00]} 27. Qd2 {[%emt 0:04:21]} Qc5 {[%emt 0:00:30]} 28. Bc2 {[%emt 0:02:46]} Bxc2 {[%emt 0:00:00]} 29. Qxc2 {[%emt 0:00:06]} Qe7 {[%emt 0:01:00]} 30. Qf5 {[%emt 0:09:07]} Qh4+ {[%emt 0:00:30]} 31. Kf4 {[%emt 0:00:30]} Qf2+ {[%emt 0:00:30]} 32. Kxg4 {[%emt 0:00:30]} Rh4+ {[%emt 0:00:30]} 0-1

[Event "2nd Serbian League-Vojvodina 2023"]
[Site "Novi Sad"]
[Date "2023.11.06"]
[Round "6.13"]
[White "Jakovljev, Zoran"]
[Black "Mezentsev, Ivan"]
[Result "0-1"]
[ECO "B52"]
[WhiteElo "2194"]
[BlackElo "2360"]
[Annotator "RC"]
[PlyCount "102"]
[EventDate "2023.10.22"]
[EventType "team-tourn"]
[EventCountry "SRB"]
[SourceTitle "playchess.com"]
[Source "ChessBase"]
[SourceQuality "1"]
[TimeControl "40/5400+30:1800+30"]

1. e4 {[%emt 0:00:03]} c5 {[%emt 0:00:05]} 2. Nf3 {[%emt 0:00:05]} d6 {[%emt 0:00:04]} 3. Bb5+ {[%emt 0:00:15]} Bd7 {[%emt 0:01:43]} 4. Bxd7+ {[%emt 0:00:03]} Nxd7 {[%emt 0:00:07]} 5. O-O {[%emt 0:00:07]} Ngf6 {[%emt 0:00:28]} 6. Re1 {[%emt 0:00:03]} e6 {[%emt 0:00:28]} 7. d4 {[%emt 0:00:06]} cxd4 {[%emt 0:00:29]} 8. Nxd4 {[%emt 0:00:03]} a6 {[%emt 0:03:41]} 9. c4 {[%emt 0:00:08]} Be7 {[%emt 0:00:05]} 10. Nc3 {[%emt 0:00:18]} O-O {[%emt 0:01:09]} 11. b3 {[%emt 0:00:01]} Rc8 {[%emt 0:06:25]} 12. Bb2 {[%emt 0:00:05]} Qa5 {[%emt 0:01:12]} 13. Rc1 {[%emt 0:02:28]} Rfe8 {[%emt 0:00:14]} 14. Qd2 {[%emt 0:00:57]} Bf8 {[%emt 0:02:18]} 15. Rcd1 {[%emt 0:00:03]} Qc5 {[%emt 0:05:58]} 16. h3 {[%emt 0:01:14]} Ne5 {[%emt 0:06:06]} 17. Re3 {[%emt 0:05:52]} Ng6 {[%emt 0:02:20]} 18. Rg3 {[%emt 0:00:51]} Be7 {[%emt 0:03:28]} 19. Rg5 {[%emt 0:48:31]} Qb6 {[%emt 0:05:16]} 20. Qe2 {[%emt 0:02:48]} Nd7 {[%emt 0:08:18]} 21. Rg3 {[%emt 0:02:55]} Bh4 {[%emt 0:01:29]} 22. Na4 {[%emt 0:13:31]} Qa5 {[%emt 0:15:02]} 23. Rc3 {[%emt 0:04:58]} Bf6 {[%emt 0:02:04]} 24. Rcc1 {[%emt 0:02:15]} Bg5 {[%emt 0:06:37]} 25. Rb1 {[%emt 0:00:56]} Nf4 {[%emt 0:01:18]} 26. Qf1 {[%emt 0:00:04]} Be7 {[%emt 0:00:35]} 27. g3 {[%emt 0:00:29]} Ng6 {[%emt 0:00:14]} 28. Qe2 {[%emt 0:00:20]} Bf8 {[%emt 0:02:04]} 29. h4 {[%emt 0:01:30]} Nge5 {[%emt 0:00:52]} 30. h5 {[%emt 0:00:48]} h6 {[%emt 0:00:20]} 31. Kg2 {[%emt 0:00:04]} Nc6 {[%emt 0:01:25]} 32. Nxc6 {[%emt 0:01:15]} Rxc6 {[%emt 0:00:28]} 33. Bc3 {[%emt 0:05:30]} Qc7 {[%emt 0:00:22]} 34. Nb2 {[%emt 0:00:29]} b5 {[%emt 0:01:00]} 35. Rbc1 {[%emt 0:00:42]} bxc4 {[%emt 0:01:00]} 36. Nxc4 {[%emt 0:00:09]} Rc8 {[%emt 0:01:13]} 37. Bb2 {[%emt 0:01:09]} Nc5 {[%emt 0:04:21]} 38. f3 {[%emt 0:04:19]} Nd7 {[%emt 0:00:54]} 39. g4 {[%emt 0:00:24]} Qd8 {[%emt 0:01:26]} 40. Kh3 {[%emt 0:00:14]} Be7 {[%emt 0:00:50]} 41. Bc3 {[%emt 0:32:20]} Bg5 {[%emt 0:31:05]} 42. Rb1 {[%emt 0:01:05]} Bf4 {[%emt 0:00:37]} 43. Be1 {[%emt 0:00:27]} Nf8 {[%emt 0:01:59]} 44. Rb2 {[%emt 0:01:05]} d5 {[%emt 0:02:18]} 45. exd5 {[%emt 0:00:41]} exd5 {[%emt 0:00:04]} 46. Qd3 {[%emt 0:00:07]} Ne6 {[%emt 0:02:08]} 47. Qxd5 {[%emt 0:00:29]} Qf6 {[%emt 0:00:52]} 48. Bh4 {[%emt 0:00:23]} Bg5 {[%emt 0:00:37]} 49. Bxg5 {[%emt 0:00:30]} Nxg5+ {[%emt 0:00:36]} 50. Kg3 {[%emt 0:00:07]} Rxc4 {[%emt 0:00:22]} 51. bxc4 {[%emt 0:00:09]} Qxb2 {[%emt 0:00:05]} 0-1

[Event "2nd Serbian League-Vojvodina 2023"]
[Site "Novi Sad"]
[Date "2023.11.06"]
[Round "6.14"]
[White "Mushini Ajay"]
[Black "Popovic, Zoran"]
[Result "1-0"]
[ECO "B12"]
[WhiteElo "2301"]
[BlackElo "2210"]
[Annotator "RC"]
[PlyCount "51"]
[EventDate "2023.10.22"]
[EventType "team-tourn"]
[EventCountry "SRB"]
[SourceTitle "playchess.com"]
[Source "ChessBase"]
[SourceQuality "1"]
[TimeControl "40/5400+30:1800+30"]

1. e4 {[%emt 1:31:00]} c6 {[%emt 1:31:00]} 2. d4 {[%emt 0:00:30]} d5 {[%emt 0:00:30]} 3. e5 {[%emt 0:00:30]} Bf5 {[%emt 0:00:30]} 4. Nf3 {[%emt 0:00:30]} e6 {[%emt 0:00:30]} 5. Be2 {[%emt 0:00:30]} c5 {[%emt 0:00:30]} 6. O-O {[%emt 0:00:30]} Nc6 {[%emt 0:00:30]} 7. Be3 {[%emt 0:00:30]} cxd4 {[%emt 0:00:30]} 8. Nxd4 {[%emt 0:00:30]} Nge7 {[%emt 0:00:30]} 9. g4 {[%emt 0:00:30]} Bg6 {[%emt 0:00:30]} 10. f4 {[%emt 0:00:30]} Nxd4 {[%emt 0:00:30]} 11. Qxd4 {[%emt 0:00:30]} a6 {[%emt 0:00:30]} 12. f5 {[%emt 0:00:30]} exf5 {[%emt 0:00:30]} 13. Nc3 {[%emt 0:00:30]} fxg4 {[%emt 0:00:30]} 14. Rad1 {[%emt 0:00:30]} Nc6 {[%emt 0:00:30]} 15. Qf4 {[%emt 0:00:30]} d4 {[%emt 0:00:30]} 16. Bc4 {[%emt 0:00:30]} Qd7 {[%emt 0:00:30]} 17. Nd5 {[%emt 0:00:30]} Qd8 {[%emt 0:00:30]} 18. e6 {[%emt 0:00:30]} Bd6 {[%emt 0:00:30]} 19. exf7+ {[%emt 0:00:30]} Kf8 {[%emt 0:00:30]} 20. Qxg4 {[%emt 0:00:30]} dxe3 {[%emt 0:00:30]} 21. Nf4 {[%emt 0:00:30]} Qb6 {[%emt 0:00:30]} 22. Ne6+ {[%emt 0:00:30]} Ke7 {[%emt 0:00:30]} 23. Qg5+ {[%emt 0:00:30]} Kd7 {[%emt 0:00:30]} 24. Rxd6+ {[%emt 0:00:30]} Kxd6 {[%emt 0:00:30]} 25. Rd1+ {[%emt 0:00:30]} Nd4 {[%emt 0:00:30]} 26. Rxd4+ {[%emt 0:00:30]} 1-0

[Event "2nd Serbian League-Vojvodina 2023"]
[Site "Novi Sad"]
[Date "2023.11.06"]
[Round "6.15"]
[White "Telecki, Ivan"]
[Black "Jotic, Vladimir"]
[Result "1-0"]
[ECO "B10"]
[WhiteElo "2260"]
[BlackElo "2280"]
[Annotator "RC"]
[PlyCount "53"]
[EventDate "2023.10.22"]
[EventType "team-tourn"]
[EventCountry "SRB"]
[SourceTitle "playchess.com"]
[Source "ChessBase"]
[SourceQuality "1"]
[TimeControl "40/5400+30:1800+30"]

1. e4 {[%emt 0:00:30]} c6 {[%emt 0:07:42]} 2. d3 {[%emt 0:01:51]} g6 {[%emt 0:00:42]} 3. g3 {[%emt 0:00:31]} Bg7 {[%emt 0:00:02]} 4. Bg2 {[%emt 0:00:22]} d5 {[%emt 0:00:37]} 5. exd5 {[%emt 0:03:48]} cxd5 {[%emt 0:01:19]} 6. Nc3 {[%emt 0:00:10]} Nf6 {[%emt 0:00:20]} 7. Nge2 {[%emt 1:26:48]} Nc6 {[%emt 0:08:09]} 8. O-O {[%emt 0:00:00]} h5 {[%emt 0:02:41]} 9. Bg5 {[%emt 0:01:00]} Nh7 {[%emt 0:05:03]} 10. Bd2 {[%emt 0:00:00]} d4 {[%emt 0:02:27]} 11. Ne4 {[%emt 0:00:00]} h4 {[%emt 0:02:10]} 12. Nf4 {[%emt 0:01:30]} e5 {[%emt 0:22:29]} 13. Nh3 {[%emt 0:00:00]} Nf8 {[%emt 0:00:44]} 14. g4 {[%emt 0:01:00]} Ne6 {[%emt 0:04:48]} 15. b4 {[%emt 0:00:00]} Ne7 {[%emt 0:04:13]} 16. f4 {[%emt 0:00:00]} f5 {[%emt 0:00:38]} 17. gxf5 {[%emt 0:00:00]} gxf5 {[%emt 0:00:03]} 18. Neg5 {[%emt 0:02:00]} Nxg5 {[%emt 0:02:29]} 19. Nxg5 {[%emt 0:00:30]} Ng6 {[%emt 0:00:16]} 20. Qe2 {[%emt 0:00:30]} Kf8 {[%emt 0:06:49]} 21. fxe5 {[%emt 0:00:30]} Bxe5 {[%emt 0:27:19]} 22. Bxb7 {[%emt 0:00:30]} Bxb7 {[%emt 0:00:00]} 23. Ne6+ {[%emt 0:00:00]} Kg8 {[%emt 0:00:00]} 24. Nxd8 {[%emt 0:00:00]} Rxd8 {[%emt 0:00:00]} 25. Rxf5 {[%emt 0:00:00]} Re8 {[%emt 0:00:00]} 26. Qg4 {[%emt 0:00:00]} Re7 {[%emt 0:00:00]} 27. Rxe5 {[%emt 0:00:00]} 1-0

[Event "2nd Serbian League-Vojvodina 2023"]
[Site "Novi Sad"]
[Date "2023.11.06"]
[Round "6.16"]
[White "Mikheev, Stanislav"]
[Black "Varga, Robert"]
[Result "1-0"]
[ECO "E01"]
[WhiteElo "2288"]
[BlackElo "2043"]
[Annotator "RC"]
[PlyCount "81"]
[EventDate "2023.10.22"]
[EventType "team-tourn"]
[EventCountry "SRB"]
[SourceTitle "playchess.com"]
[Source "ChessBase"]
[SourceQuality "1"]
[TimeControl "40/5400+30:1800+30"]

1. d4 {[%emt 1:31:00]} Nf6 {[%emt 1:31:00]} 2. c4 {[%emt 0:00:30]} e6 {[%emt 0:00:30]} 3. Nf3 {[%emt 0:00:30]} d5 {[%emt 0:00:30]} 4. g3 {[%emt 0:00:30]} c6 {[%emt 0:00:30]} 5. Bg2 {[%emt 0:00:30]} Bd6 {[%emt 0:00:30]} 6. O-O {[%emt 0:00:30]} O-O {[%emt 0:00:30]} 7. Qc2 {[%emt 0:00:30]} Nbd7 {[%emt 0:00:30]} 8. Nbd2 {[%emt 0:00:30]} e5 {[%emt 0:00:30]} 9. cxd5 {[%emt 0:00:30]} cxd5 {[%emt 0:00:30]} 10. dxe5 {[%emt 0:00:30]} Nxe5 {[%emt 0:00:30]} 11. Nxe5 {[%emt 0:00:30]} Bxe5 {[%emt 0:00:30]} 12. Nf3 {[%emt 0:00:30]} Bd6 {[%emt 0:00:30]} 13. Rd1 {[%emt 0:00:30]} h6 {[%emt 0:00:30]} 14. b3 {[%emt 0:00:30]} Be6 {[%emt 0:00:30]} 15. Nd4 {[%emt 0:00:30]} Rc8 {[%emt 0:00:30]} 16. Qd3 {[%emt 0:00:30]} Qd7 {[%emt 0:00:30]} 17. Bb2 {[%emt 0:00:30]} Bc5 {[%emt 0:00:30]} 18. Rac1 {[%emt 0:00:30]} a6 {[%emt 0:00:30]} 19. e3 {[%emt 0:00:30]} Bg4 {[%emt 0:00:30]} 20. Re1 {[%emt 0:00:30]} Bb4 {[%emt 0:00:30]} 21. Rf1 {[%emt 0:00:30]} Rfe8 {[%emt 0:00:30]} 22. Ne2 {[%emt 0:00:30]} Bf5 {[%emt 0:00:30]} 23. Qd4 {[%emt 0:00:30]} Rxc1 {[%emt 0:00:30]} 24. Rxc1 {[%emt 0:00:30]} Bd6 {[%emt 0:00:30]} 25. Qb6 {[%emt 0:00:30]} Be4 {[%emt 0:00:30]} 26. Bxf6 {[%emt 0:00:30]} gxf6 {[%emt 0:00:30]} 27. Bxe4 {[%emt 0:00:30]} Rxe4 {[%emt 0:00:30]} 28. Rd1 {[%emt 0:00:30]} Qc6 {[%emt 0:00:30]} 29. Qxc6 {[%emt 0:00:30]} bxc6 {[%emt 0:00:30]} 30. Nd4 {[%emt 0:00:30]} c5 {[%emt 0:00:30]} 31. Nf5 {[%emt 0:00:30]} Bf8 {[%emt 0:00:30]} 32. Rxd5 {[%emt 0:00:30]} Re5 {[%emt 0:00:30]} 33. Rxe5 {[%emt 0:00:30]} fxe5 {[%emt 0:00:30]} 34. Kg2 {[%emt 0:00:30]} Kh7 {[%emt 0:00:30]} 35. Kf3 {[%emt 0:00:30]} Kg6 {[%emt 0:00:30]} 36. e4 {[%emt 0:00:30]} Kf6 {[%emt 0:00:30]} 37. Ke3 {[%emt 0:00:30]} Ke6 {[%emt 0:00:30]} 38. Kd3 {[%emt 0:00:30]} Kd7 {[%emt 0:00:30]} 39. Kc4 {[%emt 0:00:30]} Kc6 {[%emt 0:00:30]} 40. g4 {[%emt 0:00:30]} f6 {[%emt 0:00:30]} 41. f3 {[%emt 0:30:30]} 1-0

[Event "2nd Serbian League-Vojvodina 2023"]
[Site "Novi Sad"]
[Date "2023.11.06"]
[Round "6.17"]
[White "Petronijevic, Ognjen"]
[Black "Bulajic, Ratko"]
[Result "0-1"]
[ECO "B28"]
[WhiteElo "1836"]
[BlackElo "2075"]
[Annotator "RC"]
[PlyCount "62"]
[EventDate "2023.10.22"]
[EventType "team-tourn"]
[EventCountry "SRB"]
[SourceTitle "playchess.com"]
[Source "ChessBase"]
[SourceQuality "1"]
[TimeControl "40/5400+30:1800+30"]

1. e4 {[%emt 1:31:00]} c5 {[%emt 1:31:00]} 2. Nf3 {[%emt 0:00:30]} a6 {[%emt 0:00:30]} 3. d4 {[%emt 0:00:30]} cxd4 {[%emt 0:00:30]} 4. Nxd4 {[%emt 0:00:30]} Nf6 {[%emt 0:00:30]} 5. Nc3 {[%emt 0:00:30]} e5 {[%emt 0:00:30]} 6. Nb3 {[%emt 0:00:30]} Bb4 {[%emt 0:00:30]} 7. Bd2 {[%emt 0:00:30]} Bxc3 {[%emt 0:00:30]} 8. Bxc3 {[%emt 0:00:30]} Nxe4 {[%emt 0:00:30]} 9. Qd5 {[%emt 0:00:30]} Nxc3 {[%emt 0:00:30]} 10. Qxe5+ {[%emt 0:00:30]} Qe7 {[%emt 0:00:30]} 11. Qxe7+ {[%emt 0:00:30]} Kxe7 {[%emt 0:00:30]} 12. bxc3 {[%emt 0:00:30]} d6 {[%emt 0:00:30]} 13. O-O-O {[%emt 0:00:30]} Be6 {[%emt 0:00:30]} 14. Bd3 {[%emt 0:00:30]} Rc8 {[%emt 0:00:30]} 15. Rhe1 {[%emt 0:00:30]} Rxc3 {[%emt 0:00:30]} 16. Nd4 Kf6 17. Nxe6 fxe6 18. Bxh7 d5 19. Bg8 {[%emt 0:02:00]} Rc6 {[%emt 0:02:00]} 20. Rd3 {[%emt 0:00:30]} Nd7 {[%emt 0:00:30]} 21. Rf3+ {[%emt 0:00:30]} Ke7 {[%emt 0:00:30]} 22. Rf7+ {[%emt 0:00:30]} Kd6 23. Rxg7 {[%emt 0:00:30]} Ne5 {[%emt 0:01:00]} 24. Bh7 {[%emt 0:00:30]} Rf8 {[%emt 0:00:30]} 25. Re2 {[%emt 0:00:30]} b5 {[%emt 0:00:30]} 26. Kd1 {[%emt 0:00:30]} Rf4 {[%emt 0:00:30]} 27. g3 {[%emt 0:00:30]} Rb4 {[%emt 0:00:30]} 28. f4 {[%emt 0:00:30]} Rb1+ {[%emt 0:00:30]} 29. Kd2 {[%emt 0:00:30]} Nc4+ {[%emt 0:00:30]} 30. Kd3 {[%emt 0:00:30]} Rd1+ {[%emt 0:00:30]} 31. Kc3 {[%emt 0:00:30]} d4+ 0-1

[Event "2nd Serbian League-Vojvodina 2023"]
[Site "Novi Sad"]
[Date "2023.11.06"]
[Round "6.18"]
[White "Strangar, Zlatko"]
[Black "Meseldzija, Jovan"]
[Result "1-0"]
[ECO "B07"]
[WhiteElo "2213"]
[BlackElo "1639"]
[Annotator "RC"]
[PlyCount "59"]
[EventDate "2023.10.22"]
[EventType "team-tourn"]
[EventCountry "SRB"]
[SourceTitle "playchess.com"]
[Source "ChessBase"]
[SourceQuality "1"]
[TimeControl "40/5400+30:1800+30"]

1. e4 {[%emt 1:31:00]} d6 {[%emt 0:00:18]} 2. d4 {[%emt 0:00:00]} Nf6 3. Nc3 {[%emt 0:01:00]} g6 {[%emt 0:02:49]} 4. Bc4 Bg7 {[%emt 1:29:23]} 5. Nge2 {[%emt 0:01:00]} Nbd7 {[%emt 0:00:30]} 6. f3 {[%emt 0:00:00]} O-O 7. Be3 {[%emt 0:01:00]} c6 {[%emt 0:00:00]} 8. Qd2 {[%emt 0:00:00]} Qc7 9. Bh6 {[%emt 0:00:00]} a5 10. Bxg7 {[%emt 0:01:30]} Kxg7 {[%emt 0:00:00]} 11. Ng3 b5 {[%emt 0:03:00]} 12. Bd3 {[%emt 0:01:00]} b4 {[%emt 0:00:00]} 13. Nce2 c5 {[%emt 0:00:00]} 14. c3 {[%emt 0:00:00]} c4 15. Bc2 {[%emt 0:00:00]} Qb6 16. h4 {[%emt 0:02:00]} h5 {[%emt 0:02:30]} 17. Qg5 {[%emt 0:00:00]} Rh8 18. Nf5+ {[%emt 0:01:00]} Kf8 {[%emt 0:00:00]} 19. Ne3 {[%emt 0:00:00]} Ba6 20. O-O {[%emt 0:01:00]} b3 {[%emt 0:00:00]} 21. Bd1 {[%emt 0:00:00]} e5 22. Rf2 {[%emt 0:00:00]} Bb5 23. Nd5 {[%emt 0:01:30]} Nxd5 {[%emt 0:00:00]} 24. exd5 {[%emt 0:00:00]} a4 {[%emt 0:04:00]} 25. f4 {[%emt 0:00:00]} Qd8 26. Qg3 {[%emt 0:01:30]} exf4 {[%emt 0:00:00]} 27. Nxf4 {[%emt 0:00:30]} Nf6 {[%emt 0:01:30]} 28. Nxg6+ {[%emt 0:00:30]} fxg6 {[%emt 0:00:00]} 29. Qxg6 {[%emt 0:00:30]} Ra7 {[%emt 0:00:00]} 30. Rxf6+ {[%emt 0:00:30]} 1-0

[Event "2nd Serbian League-Vojvodina 2023"]
[Site "Novi Sad"]
[Date "2023.11.06"]
[Round "6.19"]
[White "Samani, Yamac"]
[Black "Georgiev, Krum"]
[Result "1-0"]
[ECO "E81"]
[WhiteElo "2349"]
[BlackElo "2294"]
[Annotator "RC"]
[PlyCount "49"]
[EventDate "2023.10.22"]
[EventType "team-tourn"]
[EventCountry "SRB"]
[SourceTitle "playchess.com"]
[Source "ChessBase"]
[SourceQuality "1"]
[TimeControl "40/5400+30:1800+30"]

1. d4 {[%emt 1:31:00]} Nf6 {[%emt 1:31:00]} 2. c4 {[%emt 0:00:30]} g6 {[%emt 0:00:30]} 3. Nc3 {[%emt 0:00:30]} Bg7 {[%emt 0:00:30]} 4. e4 {[%emt 0:00:30]} d6 {[%emt 0:00:30]} 5. f3 {[%emt 0:00:30]} O-O {[%emt 0:00:30]} 6. Be3 {[%emt 0:00:30]} a6 {[%emt 0:00:30]} 7. Qd2 {[%emt 0:00:30]} c6 {[%emt 0:00:30]} 8. h4 {[%emt 0:00:30]} h5 {[%emt 0:00:30]} 9. O-O-O {[%emt 0:00:30]} b5 {[%emt 0:00:30]} 10. g4 {[%emt 0:00:30]} hxg4 {[%emt 0:00:30]} 11. h5 {[%emt 0:00:30]} Nxh5 {[%emt 0:00:30]} 12. Bh6 {[%emt 0:00:30]} f6 {[%emt 0:00:30]} 13. fxg4 {[%emt 0:00:30]} Bxg4 {[%emt 0:00:30]} 14. Be2 {[%emt 0:00:30]} Qd7 {[%emt 0:00:30]} 15. Nf3 {[%emt 0:00:30]} Ng3 {[%emt 0:00:30]} 16. Bxg7 {[%emt 0:00:30]} Nxe2+ 17. Nxe2 Kxg7 {[%emt 0:01:00]} 18. Qh6+ {[%emt 0:01:00]} Kf7 {[%emt 0:00:30]} 19. Ng5+ {[%emt 0:00:30]} Ke8 {[%emt 0:00:30]} 20. Qg7 {[%emt 0:00:30]} fxg5 {[%emt 0:00:30]} 21. Rh8 {[%emt 0:00:30]} Kd8 {[%emt 0:00:30]} 22. Qxf8+ {[%emt 0:00:30]} Kc7 {[%emt 0:00:30]} 23. Rd2 {[%emt 0:00:30]} Qe6 {[%emt 0:00:30]} 24. Qd8+ {[%emt 0:00:30]} Kb7 {[%emt 0:00:30]} 25. c5 {[%emt 0:00:30]} 1-0

[Event "2nd Serbian League-Vojvodina 2023"]
[Site "Novi Sad"]
[Date "2023.11.06"]
[Round "6.21"]
[White "Pajcin, Lav"]
[Black "Mijatovic, Dusan"]
[Result "1/2-1/2"]
[ECO "B97"]
[WhiteElo "2109"]
[BlackElo "2139"]
[Annotator "RC"]
[PlyCount "63"]
[EventDate "2023.10.22"]
[EventType "team-tourn"]
[EventCountry "SRB"]
[SourceTitle "playchess.com"]
[Source "ChessBase"]
[SourceQuality "1"]
[TimeControl "40/5400+30:1800+30"]

1. e4 {[%emt 0:00:03]} c5 {[%emt 0:00:14]} 2. Nf3 {[%emt 0:00:10]} d6 {[%emt 0:00:11]} 3. d4 {[%emt 0:00:21]} cxd4 {[%emt 0:00:03]} 4. Nxd4 {[%emt 0:00:07]} Nf6 {[%emt 0:00:16]} 5. Nc3 {[%emt 0:00:05]} a6 {[%emt 0:00:23]} 6. Bg5 {[%emt 0:00:14]} e6 {[%emt 0:00:06]} 7. f4 {[%emt 0:00:17]} h6 {[%emt 0:00:26]} 8. Bh4 {[%emt 0:00:48]} Qb6 {[%emt 0:00:16]} 9. Qd2 {[%emt 0:03:12]} Qxb2 {[%emt 0:00:21]} 10. Rb1 {[%emt 0:00:07]} Qa3 {[%emt 0:00:08]} 11. e5 {[%emt 0:05:56]} dxe5 {[%emt 0:00:13]} 12. fxe5 {[%emt 0:00:04]} g5 {[%emt 0:00:13]} 13. Bg3 {[%emt 0:00:33]} Nh5 {[%emt 0:05:47]} 14. Ne4 {[%emt 0:03:03]} Qxa2 {[%emt 0:07:04]} 15. Rb3 {[%emt 0:06:49]} Nd7 {[%emt 0:08:47]} 16. Be2 {[%emt 0:00:52]} Qa1+ {[%emt 0:00:27]} 17. Bd1 {[%emt 0:08:17]} Nc5 {[%emt 0:06:59]} 18. Nxc5 {[%emt 0:00:34]} Nxg3 {[%emt 0:00:14]} 19. hxg3 {[%emt 0:08:52]} Bxc5 {[%emt 0:00:03]} 20. c3 {[%emt 0:00:56]} Bd7 {[%emt 0:12:04]} 21. Rxb7 {[%emt 0:05:07]} O-O-O {[%emt 0:00:39]} 22. O-O {[%emt 0:01:22]} Bb5 {[%emt 0:15:06]} 23. Rfxf7 {[%emt 0:00:49]} Bxd4+ {[%emt 0:00:20]} 24. cxd4 {[%emt 0:00:16]} Qxd4+ {[%emt 0:00:19]} 25. Kh2 {[%emt 0:02:37]} Qg1+ {[%emt 0:04:15]} 26. Kxg1 {[%emt 0:00:45]} Rxd2 {[%emt 0:38:36]} 27. Ra7 {[%emt 0:11:30]} Rxd1+ {[%emt 0:00:00]} 28. Kh2 {[%emt 0:00:04]} Kb8 {[%emt 0:00:00]} 29. Rfb7+ {[%emt 0:00:28]} Kc8 {[%emt 0:00:00]} 30. Rf7 {[%emt 0:00:20]} Kb8 {[%emt 0:00:00]} 31. Rfb7+ {[%emt 0:00:07]} Kc8 {[%emt 0:00:00]} 32. Rf7 {[%emt 0:00:07]} 1/2-1/2

[Event "2nd Serbian League-Vojvodina 2023"]
[Site "Novi Sad"]
[Date "2023.11.06"]
[Round "6.22"]
[White "Mijatovic, Dejan"]
[Black "Gagic, Milan A"]
[Result "0-1"]
[ECO "B13"]
[WhiteElo "2185"]
[BlackElo "2164"]
[Annotator "RC"]
[PlyCount "80"]
[EventDate "2023.10.22"]
[EventType "team-tourn"]
[EventCountry "SRB"]
[SourceTitle "playchess.com"]
[Source "ChessBase"]
[SourceQuality "1"]
[TimeControl "40/5400+30:1800+30"]

1. d4 {[%emt 1:31:00]} Nf6 {[%emt 1:31:00]} 2. Nf3 {[%emt 0:00:30]} c5 {[%emt 0:00:30]} 3. e3 {[%emt 0:00:30]} cxd4 {[%emt 0:00:00]} 4. exd4 {[%emt 0:00:30]} d5 {[%emt 0:01:00]} 5. Bd3 {[%emt 0:00:00]} Bg4 {[%emt 0:00:00]} 6. O-O {[%emt 0:01:00]} Nc6 {[%emt 0:01:00]} 7. c3 {[%emt 0:00:30]} e6 {[%emt 0:00:30]} 8. Nbd2 {[%emt 0:00:30]} Bd6 {[%emt 0:00:30]} 9. Re1 {[%emt 0:00:00]} Qc7 10. h3 {[%emt 0:01:00]} Bh5 {[%emt 0:01:00]} 11. b3 {[%emt 0:00:30]} O-O {[%emt 0:00:30]} 12. Bb2 {[%emt 0:00:30]} Rac8 {[%emt 0:00:30]} 13. Rc1 {[%emt 0:00:30]} Bf4 {[%emt 0:00:30]} 14. g4 {[%emt 0:00:30]} Bg6 {[%emt 0:00:30]} 15. Bxg6 {[%emt 0:00:00]} hxg6 16. c4 {[%emt 0:01:00]} Rfd8 {[%emt 0:01:00]} 17. c5 {[%emt 0:00:30]} Ne4 {[%emt 0:00:30]} 18. Bc3 {[%emt 0:00:30]} Nxc3 {[%emt 0:00:30]} 19. Rxc3 {[%emt 0:00:30]} Qa5 {[%emt 0:00:30]} 20. b4 {[%emt 0:00:30]} Nxb4 {[%emt 0:00:30]} 21. Nb3 {[%emt 0:00:30]} Qxa2 {[%emt 0:00:30]} 22. Qa1 {[%emt 0:00:30]} b6 {[%emt 0:00:30]} 23. Kg2 {[%emt 0:00:30]} Rc6 {[%emt 0:00:30]} 24. Rb1 {[%emt 0:00:30]} Rdc8 {[%emt 0:00:30]} 25. Ne1 {[%emt 0:00:30]} bxc5 {[%emt 0:00:00]} 26. Qxa2 {[%emt 0:00:00]} Nxa2 {[%emt 0:01:00]} 27. Rxc5 {[%emt 0:01:00]} Rxc5 {[%emt 0:00:30]} 28. Nxc5 {[%emt 0:00:30]} Bd6 {[%emt 0:00:30]} 29. Ned3 {[%emt 0:00:30]} Bxc5 {[%emt 0:00:30]} 30. dxc5 {[%emt 0:00:30]} a5 {[%emt 0:00:30]} 31. Rb7 {[%emt 0:00:30]} Nb4 {[%emt 0:00:00]} 32. Ne5 {[%emt 0:00:00]} d4 33. h4 {[%emt 0:01:00]} Nc6 {[%emt 0:01:30]} 34. Nxf7 {[%emt 0:00:30]} a4 {[%emt 0:00:30]} 35. Nd6 {[%emt 0:00:30]} Ra8 {[%emt 0:00:30]} 36. Rb1 {[%emt 0:00:30]} a3 {[%emt 0:00:30]} 37. Nc4 {[%emt 0:00:30]} a2 {[%emt 0:00:30]} 38. Ra1 {[%emt 0:00:30]} Nb4 {[%emt 0:00:30]} 39. Nb6 {[%emt 0:00:30]} Ra6 {[%emt 0:00:30]} 40. Kf3 {[%emt 0:00:00]} Nc2 {[%emt 0:00:30]} 0-1